bitfinex/quotes_SOLUSD_20250912
["timestamp","ask_amount","ask_price","bid_price","bid_amount"]
[1757649815584,0.06,234.55,234.52,26.0]
[1757649815990,0.06,234.55,234.53,34.72]
[1757649816986,0.06,234.55,234.54,4.26366504]
[1757649818208,0.06,234.55,234.54,34.72]
[1757649820905,0.06,234.55,234.54,38.98366504]
[1757649822499,0.06,234.55,234.54,38.96366504]
[1757649823085,0.06,234.55,234.52,26.0]
[1757649823302,0.06,234.55,234.53,34.7]
[1757649825107,0.06,234.55,234.54,4.26366504]
[1757649827305,0.06,234.55,234.54,30.26366504]
[1757649827502,0.06,234.55,234.54,64.96366504]
[1757649827932,0.78,234.55,234.54,64.96366504]
[1757649828132,0.06,234.55,234.54,64.96366504]
[1757649830020,0.06,234.55,234.54,34.7]
[1757649831916,0.78,234.55,234.45,0.2]
[1757649832128,13.59559401,234.54,234.45,0.2]
[1757649832301,0.72,234.53,234.46,34.68]
[1757649832609,0.72,234.52,234.46,34.68]
[1757649832818,0.72,234.52,234.49,26.0]
[1757649833014,13.59559401,234.54,234.49,60.68]
[1757649833208,0.72,234.51,234.49,60.68]
[1757649833525,0.72,234.5,234.49,34.68]
[1757649834302,0.72,234.5,234.48,34.68]
[1757649834609,0.72,234.49,234.45,0.2]
[1757649834817,0.66,234.48,234.45,34.88]
[1757649835439,0.66,234.48,234.47,26.0]
[1757649837236,0.66,234.5,234.48,26.0]
[1757649837428,0.66,234.49,234.48,26.0]
[1757649838323,0.66,234.53,234.48,34.68]
[1757649838841,0.06,234.55,234.48,34.68]
[1757649838842,0.66,234.52,234.48,34.68]
[1757649839443,0.66,234.52,234.48,38.94471988]
[1757649840535,0.66,234.54,234.48,38.94471988]
[1757649841024,13.65559401,234.55,234.51,26.0]
[1757649841223,0.66,234.54,234.52,34.68]
[1757649841737,13.65559401,234.55,234.52,34.68]
[1757649841738,0.66,234.53,234.52,34.68]
[1757649842412,0.06,234.55,234.52,34.68]
[1757649842612,0.72,234.55,234.52,34.68]
[1757649842813,0.06,234.55,234.52,38.94397336]
[1757649843124,0.06,234.55,234.5,30.26426856]
[1757649843536,0.06,234.55,234.51,34.68]
[1757649843719,0.06,234.55,234.5,30.26426856]
[1757649844242,0.72,234.55,234.51,4.26417931]
[1757649844643,0.72,234.55,234.52,34.66]
[1757649844833,0.72,234.55,234.53,34.66]
[1757649845320,0.72,234.55,234.54,34.66]
[1757649846231,0.72,234.55,234.5,30.26435553]
[1757649846437,0.72,234.55,234.51,34.66]
[1757649846823,0.72,234.55,234.52,34.66]
[1757649847023,0.72,234.55,234.5,30.26435553]
[1757649847429,0.72,234.55,234.51,34.66]
[1757649848041,0.06,234.55,234.5,30.26435553]
[1757649848317,0.66,234.54,234.53,26.0]
[1757649848747,0.06,234.55,234.53,26.0]
[1757649848946,0.72,234.55,234.54,34.66]
[1757649849720,0.06,234.55,234.54,34.66]
[1757649850046,0.06,234.55,234.54,38.92366504]
[1757649850249,0.06,234.55,234.54,64.92366504]
[1757649854440,0.06,234.55,234.54,64.90366504]
[1757649856156,0.06,234.55,234.54,30.26366504]
[1757649856342,0.06,234.55,234.54,64.90366504]
[1757649856832,0.06,234.55,234.54,30.26366504]
[1757649857033,0.06,234.55,234.54,64.90366504]
[1757649857735,0.72,234.55,234.54,64.90366504]
[1757649858063,0.72,234.55,234.54,34.64]
[1757649860934,0.06,234.55,234.54,34.64]
[1757649861133,0.06,234.55,234.54,38.90366504]
[1757649865940,0.06,234.55,234.54,60.62]
[1757649868253,0.06,234.55,234.54,64.88366504]
[1757649868771,0.75,234.55,234.54,64.88366504]
[1757649869172,0.06,234.55,234.54,64.88366504]
[1757649871453,0.06,234.55,234.54,64.08366504]
[1757649871653,0.06,234.55,234.54,62.28366504]
[1757649872162,0.06,234.58,234.54,72.94282765]
[1757649874195,0.06,234.58,234.54,38.32282765]
[1757649874370,0.06,234.58,234.57,30.26311975]
[1757649874718,0.06,234.58,234.57,64.84311975]
[1757649876494,0.06,234.58,234.57,30.26311975]
[1757649876799,0.06,234.58,234.57,64.84311975]
[1757649878688,0.06,234.58,234.57,68.29020028]
[1757649878900,1e-08,234.58,234.57,68.71651225]
[1757649879204,0.06,234.6,234.57,79.37431162]
[1757649879509,0.06,234.6,234.57,78.94799965]
[1757649881882,0.06,234.6,234.58,34.56]
[1757649882596,0.06,234.6,234.58,26.0]
[1757649882789,0.06,234.6,234.59,34.56]
[1757649883008,0.06,234.6,234.59,38.82275629]
[1757649884724,0.06,234.6,234.59,26.0]
[1757649884892,0.75,234.6,234.59,60.56]
[1757649885092,0.75,234.6,234.59,34.54]
[1757649885605,0.75,234.6,234.59,60.54]
[1757649885770,0.75,234.6,234.59,34.54]
[1757649886418,0.75,234.6,234.59,60.54]
[1757649889184,0.75,234.6,234.59,38.80275629]
[1757649889185,0.06,234.6,234.59,38.80275629]
[1757649890719,0.06,234.6,234.59,40.50724122]
[1757649891099,0.06,234.6,234.59,40.53724122]
[1757649895418,0.77,234.6,234.59,5.99724122]
[1757649895619,0.77,234.6,234.59,40.51724122]
[1757649899429,0.77,234.6,234.59,0.03]
[1757649904518,0.06,234.6,234.59,0.03]
[1757649907129,0.06,234.63,234.61,26.0]
[1757649907352,0.06,234.63,234.62,34.48]
[1757649908256,0.06,234.65,234.64,26.0]
[1757649908566,0.06,234.65,234.64,60.48]
[1757649909539,0.77,234.65,234.64,26.0]
[1757649909763,0.77,234.65,234.62,26.0]
[1757649910060,0.71,234.64,234.63,34.48]
[1757649910746,0.06,234.65,234.59,26.03]
[1757649911066,0.06,234.68,234.63,26.0]
[1757649911232,0.06,234.68,234.67,26.0]
[1757649911427,0.71,234.67,234.6,26.0]
[1757649911639,0.71,234.66,234.64,27.70404925]
[1757649911842,0.06,234.68,234.65,34.46]
[1757649912289,0.06,234.68,234.67,26.0]
[1757649912530,0.06,234.68,234.67,60.46]
[1757649913142,0.06,234.68,234.67,64.7213031]
[1757649913569,0.06,234.7,234.67,77.7786101]
[1757649913768,0.77,234.76,234.68,0.7]
[1757649913939,0.77,234.76,234.72,26.0]
[1757649914134,0.77,234.76,234.72,60.46]
[1757649914336,0.06,234.76,234.72,60.46]
[1757649914656,1e-08,234.83,234.73,12.90216157]
[1757649914832,0.71,235.05,234.93,26.0]
[1757649915028,10.72999805,235.19,234.94,68.32469378]
[1757649915029,1e-08,234.97,234.94,68.32469378]
[1757649915231,1e-08,234.97,234.96,37.99379916]
[1757649915459,1e-08,234.97,234.96,76.80949065]
[1757649915673,0.71,235.1,235.0,26.0]
[1757649915834,0.71,235.14,235.04,26.0]
[1757649916042,0.71,235.14,235.05,3.11765512]
[1757649916238,0.71,235.14,235.08,26.0]
[1757649916464,0.71,235.14,235.08,61.04]
[1757649916686,0.1,235.19,235.08,61.04]
[1757649916983,0.1,235.19,235.1,26.0]
[1757649916984,0.81,235.19,235.1,26.0]
[1757649917279,0.81,235.19,235.14,26.0]
[1757649917570,0.1,235.19,235.18,26.0]
[1757649917949,0.81,235.19,235.18,35.02]
[1757649918564,0.81,235.19,235.16,26.0]
[1757649918772,0.71,235.18,235.14,4.25105584]
[1757649918942,0.1,235.19,235.14,4.25105584]
[1757649919143,0.1,235.19,235.18,26.0]
[1757649919547,0.1,235.19,235.14,30.25105584]
[1757649919747,0.71,235.18,235.14,4.25105584]
[1757649919975,0.71,235.18,235.17,26.0]
[1757649920980,0.71,235.18,235.16,26.0]
[1757649921696,0.1,235.19,235.16,26.0]
[1757649921697,4.35196599,235.19,235.16,26.0]
[1757649921854,0.71,235.17,235.16,26.0]
[1757649922468,0.71,235.17,235.15,34.94]
[1757649922670,0.1,235.19,235.15,34.94]
[1757649922885,0.71,235.18,235.15,34.94]
[1757649923073,4.96217732,235.18,235.15,34.94]
[1757649923455,0.71,235.17,235.16,34.92]
[1757649924263,0.71,235.17,235.15,26.0]
[1757649924479,0.71,235.16,235.15,26.0]
[1757649925071,0.71,235.16,235.11,4.25217732]
[1757649925303,4.95260472,235.15,235.12,34.9]
[1757649925474,0.7,235.14,235.12,34.9]
[1757649925799,0.7,235.14,235.1,30.25217732]
[1757649925969,0.7,235.14,235.11,34.88]
[1757649926582,0.7,235.13,235.11,34.88]
[1757649927009,0.7,235.12,235.03,26.0]
[1757649927336,4.25332822,235.11,235.06,10.63015562]
[1757649927469,14.88664879,235.11,235.07,34.86]
[1757649927810,0.7,235.1,235.09,26.0]
[1757649928118,26.0,235.07,235.05,0.03]
[1757649928282,19.20659611,235.1,234.81,0.77]
[1757649928283,26.0,235.03,234.81,0.77]
[1757649928477,26.0,235.03,234.85,7.94]
[1757649928677,4.9110021,234.95,234.84,10.06]
[1757649928894,26.7,235.02,234.81,0.1]
[1757649928895,13.73775558,234.92,234.81,0.1]
[1757649929077,0.14216157,234.92,234.81,0.1]
[1757649929283,13.73775558,234.9,234.81,15.1]
[1757649929484,18.64875768,234.9,234.81,0.1]
[1757649930681,13.73775558,234.88,234.81,0.1]
[1757649931102,13.73775558,234.85,234.81,0.1]
[1757649931417,0.14216157,234.82,234.81,0.1]
[1757649931585,14.43775558,234.82,234.81,0.1]
[1757649932419,14.43775558,234.82,234.81,1e-08]
[1757649933218,13.59559401,234.73,234.71,0.1]
[1757649933427,0.14216157,234.72,234.71,0.1]
[1757649934615,0.84216157,234.72,234.71,0.1]
[1757649934914,14.43775558,234.72,234.71,1e-08]
[1757649935119,34.6328994,234.72,234.71,1e-08]
[1757649935411,38.89329476,234.72,234.71,1e-08]
[1757649940816,74.15329476,234.72,234.71,1e-08]
[1757649941788,38.75113319,234.72,234.71,1e-08]
[1757649942429,38.89329476,234.72,234.71,1e-08]
[1757649944312,74.17329476,234.72,234.71,1e-08]
[1757649946229,74.17329476,234.72,234.71,0.03000001]
[1757649946897,74.17329476,234.72,234.68,1e-08]
[1757649946898,39.59559401,234.69,234.68,1e-08]
[1757649947129,82.34871769,234.69,234.68,1e-08]
[1757649947333,39.73775558,234.69,234.68,1e-08]
[1757649947631,84.05371119,234.69,234.68,1e-08]
[1757649948252,84.75371119,234.69,234.68,1e-08]
[1757649948737,89.01465115,234.69,234.68,1e-08]
[1757649950435,87.30965765,234.69,234.68,1e-08]
[1757649950811,86.60965765,234.69,234.68,1e-08]
[1757649951128,86.60965765,234.69,234.59,0.03]
[1757649951129,13.73775558,234.68,234.59,0.03]
[1757649951430,21.14871769,234.6,234.59,0.03]
[1757649951613,56.28871769,234.6,234.59,0.03]
[1757649952933,60.55129228,234.6,234.59,0.03]
[1757649953132,26.0,234.58,234.52,0.67]
[1757649953315,56.24871769,234.57,234.52,0.67]
[1757649955437,60.51183744,234.57,234.52,0.67]
[1757649955742,60.51183744,234.57,234.49,0.7]
[1757649956332,13.73775558,234.56,234.49,0.7]
[1757649956540,21.14871769,234.52,234.49,0.7]
[1757649956833,56.18871769,234.52,234.49,0.7]
[1757649957539,53.04178423,234.52,234.49,0.7]
[1757649958440,60.45274634,234.52,234.45,0.9]
[1757649959017,60.45274634,234.52,234.47,0.73]
[1757649961238,60.45274634,234.52,234.51,1e-08]
[1757649962318,61.11274634,234.52,234.51,1e-08]
[1757649962646,39.59559401,234.48,234.47,0.03]
[1757649962822,82.08871769,234.48,234.47,0.03]
[1757649963841,39.73775558,234.48,234.47,0.73]
[1757649964016,82.08871769,234.48,234.47,0.03]
[1757649964222,86.35347374,234.48,234.47,0.03]
[1757649964448,87.01347374,234.48,234.47,0.03]
[1757649964814,86.35347374,234.48,234.47,0.03]
[1757649966545,44.00251163,234.48,234.47,0.03]
[1757649966746,44.00251163,234.48,234.47,0.73]
[1757649966915,78.90251163,234.48,234.47,0.73]
[1757649967318,78.90251163,234.48,234.47,0.03]
[1757649967816,44.00251163,234.48,234.47,0.03]
[1757649968018,78.90251163,234.48,234.47,0.03]
[1757649968240,86.31347374,234.48,234.47,0.03]
[1757649968420,0.06,234.52,234.47,0.73]
[1757649968820,0.06,234.52,234.48,26.0]
[1757649969028,0.06,234.52,234.49,0.7]
[1757649972022,0.06,234.52,234.49,4.9645504]
[1757649972450,0.06,234.52,234.5,0.7]
[1757649973331,0.06,234.52,234.5,30.96431907]
[1757649973652,0.06,234.52,234.51,26.0]
[1757649974153,0.06,234.52,234.51,26.7]
[1757649978847,4.3240392,234.52,234.49,0.7]
[1757649979257,4.3240392,234.52,234.49,26.7]
[1757649979475,4.3240392,234.52,234.49,0.7]
[1757649980166,4.3240392,234.52,234.5,0.7]
[1757649980381,13.73775558,234.51,234.47,0.73]
[1757649980859,13.73775558,234.51,234.48,0.7]
[1757649982646,4.3240392,234.52,234.47,0.03]
[1757649982647,0.06,234.52,234.49,0.7]
[1757649982967,0.06,234.52,234.5,0.7]
[1757649983751,0.06,234.52,234.51,0.7]
[1757649987375,0.06,234.52,234.49,0.7]
[1757649987578,0.06,234.52,234.5,0.67]
[1757649987982,0.06,234.52,234.51,0.67]
[1757649988277,0.14216157,234.5,234.49,0.03]
[1757649988658,18.0021479,234.5,234.49,0.03]
[1757649990572,13.73775558,234.51,234.49,0.7]
[1757649990879,18.00197712,234.51,234.49,0.7]
[1757649994994,0.06,234.52,234.5,0.67]
[1757649995366,0.06,234.52,234.51,0.67]
[1757649996070,4.32402865,234.52,234.49,0.03]
[1757649996275,4.32402865,234.52,234.5,0.67]
[1757649996957,4.32402865,234.52,234.49,0.03]
[1757649997362,13.73775558,234.51,234.49,0.03]
[1757650000373,18.0021479,234.5,234.49,0.03]
[1757650003369,18.7121479,234.5,234.49,0.03]
[1757650003698,21.88921163,234.5,234.49,0.03]
[1757650006598,23.84279574,234.5,234.49,0.03]
[1757650006796,39.59559401,234.47,234.46,0.03]
[1757650007093,41.69133969,234.47,234.46,0.03]
[1757650007263,42.40133969,234.47,234.46,0.03]
[1757650008189,46.66627763,234.47,234.46,0.03]
[1757650009297,0.14216157,234.46,234.44,0.03]
[1757650009500,15.69133969,234.45,234.44,0.03]
[1757650009694,28.60752271,234.45,234.44,0.03]
[1757650010501,32.87282448,234.45,234.44,0.03]
[1757650011400,33.58282448,234.45,234.44,0.03]
[1757650011979,68.20282448,234.45,234.44,0.03]
[1757650012385,13.73775558,234.44,234.43,1e-08]
[1757650012695,14.44775558,234.44,234.43,1e-08]
[1757650014483,18.71323928,234.44,234.43,1e-08]
[1757650015105,18.00323928,234.44,234.43,1e-08]
[1757650015600,19.95682339,234.44,234.43,1e-08]
[1757650016505,20.64682339,234.44,234.43,1e-08]
[1757650017085,19.95682339,234.44,234.43,1e-08]
[1757650017490,20.64682339,234.44,234.43,1e-08]
[1757650018192,19.95682339,234.44,234.43,1e-08]
[1757650019105,18.00323928,234.44,234.43,1e-08]
[1757650019305,18.00323928,234.44,234.43,0.72000001]
[1757650019677,17.86107771,234.44,234.43,0.72000001]
[1757650019880,36.66234486,234.47,234.43,0.72000001]
[1757650019881,13.59559401,234.46,234.43,0.72000001]
[1757650020292,13.59559401,234.46,234.44,0.72]
[1757650020498,17.86071385,234.46,234.44,0.72]
[1757650020708,0.14216157,234.45,234.44,0.72]
[1757650021525,4.40746334,234.45,234.44,0.72]
[1757650021687,13.73775558,234.44,234.43,1e-08]
[1757650022220,49.04775558,234.44,234.43,1e-08]
[1757650023426,39.59559401,234.42,234.41,1e-08]
[1757650023597,76.29133969,234.42,234.41,1e-08]
[1757650023798,76.98133969,234.42,234.41,1e-08]
[1757650025133,84.42242308,234.42,234.41,1e-08]
[1757650025332,13.59559401,234.38,234.21,0.1]
[1757650025626,15.69133969,234.33,234.32,1e-08]
[1757650025798,53.46717773,234.33,234.32,1e-08]
[1757650025994,53.46717773,234.33,234.24,0.72]
[1757650025995,13.73775558,234.32,234.24,0.72]
[1757650026216,13.73775558,234.27,234.24,0.72]
[1757650026528,13.73775558,234.27,234.25,0.72]
[1757650026888,4.2687612,234.26,234.25,0.72]
[1757650027092,17.86435521,234.26,234.25,0.72]
[1757650027293,17.86435521,234.26,234.21,0.1]
[1757650027294,6.22234531,234.26,234.22,0.72]
[1757650027494,6.22234531,234.26,234.23,0.72]
[1757650028294,14.94066421,234.26,234.21,0.1]
[1757650028723,16.89424832,234.26,234.22,0.72]
[1757650028921,16.89424832,234.26,234.23,0.72]
[1757650029130,16.89424832,234.26,234.24,0.72]
[1757650030218,6.22234531,234.26,234.25,0.72]
[1757650030618,4.2687612,234.26,234.23,0.72]
[1757650030817,4.2687612,234.26,234.24,0.72]
[1757650031503,4.2687612,234.26,234.22,0.72]
[1757650031700,17.86435521,234.26,234.23,0.72]
[1757650031927,4.2687612,234.26,234.23,0.72]
[1757650032145,17.86435521,234.26,234.24,0.72]
[1757650032308,4.2687612,234.26,234.21,0.1]
[1757650032632,6.22234531,234.26,234.22,0.72]
[1757650032829,6.22234531,234.26,234.23,0.72]
[1757650033136,135.3385371,234.28,234.23,0.72]
[1757650033609,0.14216157,234.27,234.23,0.72]
[1757650033938,0.14216157,234.27,234.24,0.72]
[1757650034238,0.14216157,234.27,234.25,0.72]
[1757650034415,0.14216157,234.27,234.26,0.72]
[1757650035318,135.3385371,234.28,234.26,0.72]
[1757650035319,131.06999999,234.28,234.26,0.72]
[1757650035516,131.06999999,234.38,234.26,0.72]
[1757650035716,4.26700334,234.36,234.26,0.72]
[1757650035935,0.14216157,234.33,234.26,0.72]
[1757650036113,0.14216157,234.29,234.26,0.72]
[1757650036314,1.95358411,234.3,234.27,0.72]
[1757650036636,0.14216157,234.29,234.27,0.72]
[1757650036948,0.14216157,234.29,234.28,0.72]
[1757650038546,0.14216157,234.31,234.28,0.72]
[1757650038846,0.14216157,234.31,234.29,0.72]
[1757650039612,3.2999322,234.3,234.29,0.72]
[1757650040517,3.15777063,234.3,234.29,0.72]
[1757650040724,131.06999999,234.32,234.29,0.72]
[1757650042139,131.06999999,234.32,234.3,0.72]
[1757650042322,3.16027096,234.31,234.3,0.72]
[1757650042842,4.26803243,234.3,234.28,0.72]
[1757650043028,4.26803243,234.3,234.29,0.72]
[1757650043639,7.429516,234.3,234.25,0.72]
[1757650043842,3.16148357,234.29,234.22,34.63]
[1757650044037,4.26803243,234.3,234.25,0.72]
[1757650044338,5.25754388,234.29,234.25,0.72]
[1757650044552,0.14216157,234.27,234.23,0.72]
[1757650044844,134.23179819,234.26,234.23,0.72]
[1757650045028,131.06999999,234.26,234.23,0.72]
[1757650045426,131.06999999,234.26,234.22,0.03]
[1757650045427,2.09574568,234.27,234.22,0.03]
[1757650045742,3.16371834,234.26,234.22,0.03]
[1757650045939,0.04,234.28,234.22,0.03]
[1757650046140,13.59559401,234.24,234.22,0.03]
[1757650046445,15.54917812,234.23,234.22,0.03]
[1757650047146,19.81848606,234.23,234.22,0.03]
[1757650047550,15.69133969,234.21,234.2,0.2]
[1757650047936,15.69133969,234.21,234.19,0.03]
[1757650047937,13.59559401,234.2,234.19,0.03]
[1757650048121,15.73133969,234.2,234.19,0.03]
[1757650048445,15.73133969,234.2,234.17,1e-08]
[1757650048446,15.69133969,234.18,234.17,1e-08]
[1757650048618,50.29133969,234.18,234.17,1e-08]
[1757650048815,15.69133969,234.18,234.17,1e-08]
[1757650049015,19.96155917,234.18,234.17,1e-08]
[1757650049429,4.41238105,234.18,234.17,1e-08]
[1757650049636,6.36596516,234.18,234.17,1e-08]
[1757650049851,4.41238105,234.18,234.17,1e-08]
[1757650050152,6.22307433,234.22,234.17,0.72000001]
[1757650050355,1.95358411,234.2,234.17,1e-08]
[1757650050652,1.95358411,234.19,234.17,1e-08]
[1757650051025,4.27021948,234.18,234.17,1e-08]
[1757650051223,4.27021948,234.18,234.17,0.72000001]
[1757650052018,4.41209719,234.2,234.17,0.72000001]
[1757650052834,4.26993562,234.2,234.17,1e-08]
[1757650053029,10.67372555,234.22,234.18,0.72]
[1757650053030,4.26949022,234.22,234.18,0.72]
[1757650053350,4.26949022,234.22,234.19,0.72]
[1757650053845,4.26949022,234.22,234.17,1e-08]
[1757650054144,135.51144091,234.24,234.19,0.72]
[1757650054444,131.1,234.24,234.19,0.72]
[1757650056018,131.16,234.24,234.19,0.72]
[1757650056424,135.42913592,234.24,234.19,0.72]
[1757650056624,131.16,234.24,234.2,0.72]
[1757650056825,33.28343279,234.25,234.2,0.72]
[1757650057139,33.28343279,234.25,234.2,26.72]
[1757650057324,33.28343279,234.25,234.21,0.72]
[1757650058945,33.28343279,234.25,234.21,35.32]
[1757650059149,33.28343279,234.25,234.23,4.26930794]
[1757650059339,33.28343279,234.25,234.22,0.72]
[1757650059957,33.28343279,234.25,234.23,34.6]
[1757650060147,33.28343279,234.25,234.24,0.72]
[1757650060963,33.28343279,234.25,234.24,35.32]
[1757650061465,37.55247303,234.25,234.22,34.6]
[1757650061669,37.55247303,234.25,234.22,0.72]
[1757650061965,37.55247303,234.25,234.19,0.72]
[1757650062149,3.16751974,234.24,234.19,0.72]
[1757650062766,3.16751974,234.23,234.17,1e-08]
[1757650062957,3.16751974,234.22,234.18,0.72]
[1757650063139,3.16751974,234.24,234.19,0.72]
[1757650063333,4.26949022,234.22,234.19,0.72]
[1757650064142,4.26917243,234.24,234.2,0.72]
[1757650064435,4.26917243,234.24,234.21,0.72]
[1757650065756,3.17139465,234.23,234.17,1e-08]
[1757650065963,3.17139465,234.22,234.17,1e-08]
[1757650066164,3.17139465,234.23,234.17,1e-08]
[1757650066385,3.17139465,234.22,234.17,0.72000001]
[1757650066565,14.94198663,234.24,234.17,0.72000001]
[1757650066566,3.17139465,234.21,234.17,0.72000001]
[1757650066881,3.17372524,234.23,234.18,0.72]
[1757650067062,3.17372524,234.22,234.17,1e-08]
[1757650067381,3.17372524,234.21,234.19,0.72]
[1757650067565,4.26935468,234.23,234.2,0.72]
[1757650067771,3.17565996,234.22,234.2,0.72]
[1757650067960,3.17565996,234.21,234.2,0.72]
[1757650068478,3.17565996,234.22,234.2,0.72]
[1757650068659,3.17565996,234.24,234.2,0.72]
[1757650068856,33.28343279,234.25,234.2,0.72]
[1757650069052,3.17717308,234.24,234.21,35.32]
[1757650069387,33.28343279,234.25,234.22,0.72]
[1757650070763,33.28343279,234.25,234.21,34.6]
[1757650071060,37.55244428,234.25,234.21,35.32]
[1757650071476,33.28343279,234.25,234.22,0.72]
[1757650071987,33.28343279,234.25,234.23,0.72]
[1757650072362,33.28343279,234.25,234.24,0.72]
[1757650072755,33.28343279,234.25,234.24,35.32]
[1757650072978,33.28343279,234.25,234.24,34.6]
[1757650073684,33.34343279,234.25,234.24,34.6]
[1757650074493,33.34343279,234.25,234.24,35.32]
[1757650074661,33.34343279,234.25,234.24,0.72]
[1757650074857,33.34343279,234.25,234.24,35.3]
[1757650080802,33.34343279,234.25,234.24,39.56912568]
[1757650081176,31.90343279,234.25,234.24,39.56912568]
[1757650081395,22.46311907,234.25,234.24,53.16471969]
[1757650081589,19.46485183,234.25,234.24,53.16471969]
[1757650082394,19.46485183,234.25,234.24,52.44471969]
[1757650082781,20.14485183,234.25,234.18,4.27021948]
[1757650083006,20.14485183,234.25,234.19,34.58]
[1757650083306,20.14485183,234.25,234.22,26.0]
[1757650083474,19.46485183,234.25,234.23,34.58]
[1757650084523,19.46485183,234.25,234.2,34.56]
[1757650084524,0.68,234.24,234.2,34.56]
[1757650084805,0.68,234.23,234.17,1e-08]
[1757650085040,0.68,234.23,234.2,34.56]
[1757650085177,0.68,234.23,234.17,1e-08]
[1757650085507,3.17792104,234.24,234.17,1e-08]
[1757650085508,0.68,234.22,234.18,34.56]
[1757650085716,4.26985482,234.2,234.18,34.56]
[1757650085884,0.68,234.19,234.18,34.56]
[1757650087219,4.95006931,234.19,234.18,34.56]
[1757650088010,0.68,234.19,234.18,34.56]
[1757650088516,19.46485183,234.25,234.21,26.0]
[1757650088691,19.46485183,234.25,234.22,34.56]
[1757650089321,0.06,234.28,234.27,13.73775558]
[1757650089524,1e-08,234.28,234.27,53.84961615]
[1757650089712,1e-08,234.28,234.27,48.74461347]
[1757650089921,0.68,234.43,234.29,39.59559401]
[1757650090221,0.68,234.43,234.3,44.84275826]
[1757650090422,0.68,234.43,234.34,39.59559401]
[1757650090592,0.68,234.43,234.38,26.0]
[1757650090788,0.68,234.43,234.38,60.62]
[1757650091796,0.78,234.39,234.38,60.62]
[1757650093311,0.78,234.39,234.38,34.62]
[1757650093810,0.1,234.39,234.38,34.62]
[1757650095984,0.78,234.39,234.38,34.62]
[1757650096394,0.1,234.39,234.38,34.62]
[1757650101012,0.1,234.39,234.38,48.21559401]
[1757650103930,0.06,234.45,234.42,39.59559401]
[1757650104136,0.06,234.45,234.43,34.54]
[1757650104518,0.06,234.45,234.43,34.96656656]
[1757650104828,0.72,234.44,234.37,4.26668671]
[1757650105039,0.72,234.44,234.38,34.54]
[1757650105433,0.72,234.43,234.38,34.54]
[1757650105618,0.72,234.42,234.38,34.54]
[1757650105822,0.72,234.41,234.38,34.54]
[1757650106130,0.72,234.4,234.38,34.54]
[1757650106331,0.72,234.39,234.38,34.54]
[1757650107015,0.72,234.39,234.35,34.54]
[1757650107217,0.72,234.38,234.35,34.54]
[1757650107423,0.72,234.37,234.35,34.54]
[1757650107624,0.72,234.36,234.35,34.54]
[1757650108324,0.72,234.36,234.22,30.73]
[1757650108532,0.72,234.35,234.23,34.54]
[1757650108849,0.72,234.34,234.26,26.0]
[1757650109016,0.72,234.33,234.3,26.0]
[1757650109335,0.72,234.32,234.27,34.54]
[1757650109544,0.72,234.31,234.27,34.54]
[1757650109721,7.43723358,234.37,234.3,26.0]
[1757650110062,7.43723358,234.34,234.27,34.54]
[1757650110208,0.72,234.33,234.27,34.54]